fUSD/lending_fUSD_20250502
["ID","MTS","AMOUNT","RATE_DAILY","PERIOD"]
[359590432,1746168646112,-450.0,0.00019984,2]
[359590433,1746168646334,-450.0,0.00019984,2]
[359590434,1746168646344,-504.97,0.00019984,2]
[359590435,1746168646355,-665.98,0.00019984,2]
[359590436,1746168646364,-450.0,0.00019984,2]
[359590437,1746168646375,-1663.11,0.00019984,2]
[359590438,1746168646384,-597.21,0.00019984,2]
[359590439,1746168646394,-450.0,0.00019984,2]
[359590440,1746168646403,-857.35,0.00019984,2]
[359590441,1746168646413,-450.0,0.00019984,2]
[359590442,1746168646423,-324.07261881,0.00019984,2]
[359590443,1746168646433,-587.23,0.00019984,2]
[359590444,1746168646443,-531.58,0.00019984,2]
[359590445,1746168646455,-357.73324974,0.00019984,2]
[359590446,1746168646465,-450.0,0.00019984,2]
[359590447,1746168646476,-450.0,0.00019984,2]
[359590448,1746168646486,-450.0,0.00019984,2]
[359590449,1746168646496,-1183.54,0.00019984,2]
[359590450,1746168646506,-450.0,0.00019984,2]
[359590451,1746168646516,-450.0,0.00019984,2]
[359590452,1746168646526,-811.94,0.00019984,2]
[359590453,1746168646535,-450.0,0.00019984,2]
[359590454,1746168646545,-474.25055234,0.00019984,2]
[359590455,1746168646555,-1526.55,0.00019984,2]
[359590456,1746168646565,-470.14,0.00019984,2]
[359590457,1746168646575,-450.0,0.00019984,2]
[359590458,1746168646584,-450.0,0.00019984,2]
[359590459,1746168646593,-450.0,0.00019984,2]
[359590460,1746168646603,-450.0,0.00019984,2]
[359590461,1746168646613,-450.0,0.00019984,2]
[359590462,1746168646623,-450.0,0.00019984,2]
[359590463,1746168646633,-851.89,0.00019984,2]
[359590464,1746168646643,-475.11317135,0.00019984,2]
[359590465,1746168646652,-1137.34,0.00019984,2]
[359590466,1746168646662,-450.0,0.00019984,2]
[359590467,1746168646672,-450.0,0.00019984,2]
[359590468,1746168646681,-450.0,0.00019984,2]
[359590469,1746168646691,-1097.91,0.00019984,2]
[359590470,1746168646700,-605.17,0.00019984,2]
[359590471,1746168646710,-2127.01,0.00019984,2]
[359590472,1746168646720,-450.0,0.00019984,2]
[359590473,1746168646730,-450.0,0.00019984,2]
[359590474,1746168646740,-1157.58,0.00019984,2]
[359590475,1746168646751,-450.0,0.00019984,2]
[359590476,1746168646761,-450.0,0.00019984,2]
[359590477,1746168646771,-450.0,0.00019984,2]
[359590478,1746168646782,-450.0,0.00019984,2]
[359590479,1746168646791,-1104.02,0.00019984,2]
[359590480,1746168646802,-450.0,0.00019984,2]
[359590481,1746168646812,-450.0,0.00019984,2]
[359590482,1746168646822,-450.0,0.00019984,2]
[359590483,1746168646832,-491.59,0.00019984,2]
[359590484,1746168646842,-992.12,0.00019984,2]
[359590485,1746168646853,-1962.39,0.00019984,2]
[359590486,1746168646863,-561.95,0.00019984,2]
[359590487,1746168646874,-582.97,0.00019984,2]
[359590488,1746168646884,-7337.39,0.00019984,2]
[359590490,1746168646894,-450.0,0.00019984,2]
[359590492,1746168646904,-450.0,0.00019984,2]
[359590494,1746168646914,-450.0,0.00019984,2]
[359590496,1746168646924,-833.31,0.00019984,2]
[359590498,1746168646934,-450.0,0.00019984,2]
[359590500,1746168646944,-1086.08,0.00019984,2]
[359590502,1746168646953,-482.91,0.00019984,2]
[359590504,1746168646963,-450.0,0.00019984,2]
[359590506,1746168646973,-1195.62,0.00019984,2]
[359590508,1746168646983,-587.86,0.00019984,2]
[359590510,1746168646993,-450.0,0.00019984,2]
[359590512,1746168647004,-2742.29,0.00019984,2]
[359590513,1746168647015,-1723.74,0.00019984,2]
[359590514,1746168647026,-1121.77,0.00019984,2]
[359590515,1746168647037,-450.0,0.00019984,2]
[359590516,1746168647047,-450.0,0.00019984,2]
[359590517,1746168647057,-450.0,0.00019984,2]
[359590518,1746168647067,-1401.48,0.00019984,2]
[359590519,1746168647077,-495.27,0.00019984,2]
[359590520,1746168647087,-1444.43,0.00019984,2]
[359590521,1746168647096,-450.0,0.00019984,2]
[359590522,1746168647106,-450.0,0.00019984,2]
[359590523,1746168647116,-450.0,0.00019984,2]
[359590524,1746168647126,-1259.12,0.00019984,2]
[359590525,1746168647136,-4647.34,0.00019984,2]
[359590526,1746168647146,-501.76,0.00019984,2]
[359590527,1746168647155,-450.0,0.00019984,2]
[359590528,1746168647165,-300.0,0.00019984,2]
[359590529,1746168647175,-450.0,0.00019984,2]
[359590530,1746168647184,-450.0,0.00019984,2]
[359590531,1746168647194,-758.74,0.00019984,2]
[359590532,1746168647204,-450.0,0.00019984,2]
[359590533,1746168647214,-1789.35,0.00019984,2]
[359590534,1746168647224,-450.0,0.00019984,2]
[359590535,1746168647233,-450.0,0.00019984,2]
[359590536,1746168647243,-450.0,0.00019984,2]
[359590537,1746168647253,-457.11,0.00019984,2]
[359590538,1746168647263,-1926.72,0.00019984,2]
[359590539,1746168647272,-922.61,0.00019984,2]
[359590540,1746168647281,-450.0,0.00019984,2]
[359590541,1746168647291,-450.0,0.00019984,2]
[359590542,1746168647300,-450.0,0.00019984,2]
[359590543,1746168647309,-941.23,0.00019984,2]
[359590544,1746168647319,-450.0,0.00019984,2]
[359590545,1746168647328,-571.66696018,0.00019984,2]
[359590546,1746168647338,-450.0,0.00019984,2]
[359590547,1746168647347,-450.0,0.00019984,2]
[359590548,1746168647358,-450.0,0.00019984,2]
[359590549,1746168647368,-450.0,0.00019984,2]
[359590550,1746168647378,-1018.51,0.00019984,2]
[359590551,1746168647387,-450.0,0.00019984,2]
[359590552,1746168647397,-450.0,0.00019985,2]
[359590553,1746168647407,-283.90094239,0.00019985,2]
[359590554,1746168647417,-533.76899943,0.00019985,2]
[359590555,1746168647426,-450.0,0.00019985,2]
[359590556,1746168647436,-432.90552411,0.00019985,2]
[359590557,1746168647445,-450.0,0.00019985,2]
[359590558,1746168647458,-450.0,0.00019985,2]
[359590559,1746168647467,-365.249561,0.00019985,2]
[359590560,1746168647475,-500.0,0.00019985,2]
[359590561,1746168647484,-450.0,0.00019985,2]
[359590562,1746168647493,-450.0,0.00019985,2]
[359590563,1746168647502,-450.0,0.00019985,2]
[359590564,1746168647511,-450.0,0.00019985,2]
[359590565,1746168647519,-450.0,0.00019985,2]
[359590566,1746168647529,-450.0,0.00019985,2]
[359590567,1746168647537,-450.0,0.00019985,2]
[359590568,1746168647546,-450.0,0.00019985,2]
[359590569,1746168647555,-450.0,0.00019985,2]
[359590570,1746168647563,-519.7402053,0.00019985,2]
[359590571,1746168647572,-450.0,0.00019985,2]
[359590572,1746168647581,-450.0,0.00019985,2]
[359590573,1746168647590,-478.4757296,0.00019985,2]
[359590574,1746168647600,-532.13190058,0.00019985,2]
[359590575,1746168647610,-450.0,0.00019985,2]
[359590576,1746168647619,-711.29,0.00019985,2]
[359590577,1746168647628,-450.0,0.00019985,2]
[359590578,1746168647638,-568.71,0.00019985,2]
[359590579,1746168647648,-1151.64,0.00019985,2]
[359590580,1746168647657,-450.0,0.00019985,2]
[359590581,1746168647666,-614.99,0.00019985,2]
[359590582,1746168647675,-3227.5,0.00019985,2]
[359590583,1746168647685,-984.7,0.00019985,2]
[359590584,1746168647694,-956.5,0.00019985,2]
[359590585,1746168647703,-524.31,0.00019985,2]
[359590586,1746168647713,-472.75584464,0.00019985,2]
[359590587,1746168647721,-450.0,0.00019985,2]
[359590588,1746168647728,-1329.64,0.00019985,2]
[359590589,1746168647735,-500.0,0.00019985,2]
[359590590,1746168647744,-450.0,0.00019985,2]
[359590591,1746168647752,-468.46,0.00019985,2]
[359590592,1746168647761,-1204.07,0.00019985,2]
[359590593,1746168647769,-450.0,0.00019985,2]
[359590594,1746168647777,-450.0,0.00019985,2]
[359590595,1746168647784,-450.0,0.00019985,2]
[359590596,1746168647792,-500.0,0.00019985,2]
[359590597,1746168647799,-1328.43,0.00019985,2]
[359590598,1746168647807,-1361.65,0.00019985,2]
[359590599,1746168647816,-450.0,0.00019985,2]
[359590600,1746168647826,-1576.93,0.00019985,2]
[359590601,1746168647835,-1188.72,0.00019985,2]
[359590602,1746168647844,-450.0,0.00019985,2]
[359590603,1746168647854,-450.0,0.00019985,2]
[359590604,1746168647863,-2040.93,0.00019985,2]
[359590605,1746168647874,-811.94,0.00019985,2]
[359590606,1746168647883,-450.0,0.00019985,2]
[359590607,1746168647893,-450.0,0.00019985,2]
[359590608,1746168647906,-450.0,0.00019985,2]
[359590609,1746168647915,-450.0,0.00019985,2]
[359590610,1746168647925,-2339.12,0.00019985,2]
[359590611,1746168647935,-1984.75,0.00019985,2]
[359590612,1746168647944,-1021.51,0.00019985,2]
[359590613,1746168647954,-699.02,0.00019985,2]
[359590614,1746168647963,-450.0,0.00019985,2]
[359590615,1746168647973,-450.0,0.00019985,2]
[359590616,1746168647983,-476.99,0.00019985,2]
[359590617,1746168647992,-480.71,0.00019985,2]
[359590618,1746168648002,-603.42,0.00019985,2]
[359590619,1746168648012,-450.0,0.00019985,2]
[359590620,1746168648022,-541.41,0.00019985,2]
[359590621,1746168648032,-821.65,0.00019985,2]
[359590622,1746168648043,-450.0,0.00019985,2]
[359590623,1746168648053,-4268.3,0.00019985,2]
[359590624,1746168648062,-1823.55,0.00019985,2]
[359590625,1746168648072,-450.0,0.00019985,2]
[359590626,1746168648082,-809.76,0.00019985,2]
[359590627,1746168648092,-3734.59,0.00019985,2]
[359590628,1746168648102,-450.0,0.00019985,2]
[359590629,1746168648111,-1008.37,0.00019985,2]
[359590630,1746168648121,-450.0,0.00019985,2]
[359590631,1746168648131,-450.0,0.00019985,2]
[359590632,1746168648140,-450.0,0.00019985,2]
[359590633,1746168648150,-770.21,0.00019985,2]
[359590634,1746168648160,-1557.57,0.00019985,2]
[359590635,1746168648170,-1307.58,0.00019985,2]
[359590636,1746168648180,-661.61,0.00019985,2]
[359590637,1746168648189,-450.0,0.00019985,2]
[359590638,1746168648199,-1590.23,0.00019985,2]
[359590639,1746168648208,-450.0,0.00019985,2]
[359590640,1746168648218,-450.0,0.00019985,2]
[359590641,1746168648228,-1798.23,0.00019985,2]
[359590642,1746168648238,-1230.51,0.00019985,2]
[359590643,1746168648247,-645.88,0.00019985,2]
[359590644,1746168648257,-889.37,0.00019985,2]
[359590645,1746168648267,-3626.6738086,0.00019986,2]
[359590646,1746168648276,-791.7902773,0.00019986,2]
[359590647,1746168648286,-121565.6601389,0.00019986,2]
[359590648,1746168648295,-13283.8372825,0.00019986,2]
[359590649,1746168648305,-500.0,0.00019998,2]
[359590650,1746168648314,-500.0,0.00019998,2]
[359590651,1746168648324,-500.0,0.00019998,2]
[359590652,1746168648333,-500.0,0.00019998,2]
[359590653,1746168648344,-500.0,0.00019998,2]
[359590654,1746168648353,-500.0,0.00019998,2]
[359590655,1746168648363,-500.0,0.00019998,2]
[359590656,1746168648372,-500.0,0.00019998,2]
[359590657,1746168648382,-449.73983441,0.00019998,2]
[359590658,1746168648392,-500.0,0.00019998,2]
[359590659,1746168648402,-500.0,0.00019998,2]
[359590660,1746168648411,-693.55,0.00019998,2]
[359590661,1746168648421,-500.0,0.00019998,2]
[359590662,1746168648430,-693.55,0.00019998,2]
[359590663,1746168648440,-693.55,0.00019998,2]
[359590664,1746168648450,-976.89,0.00019998,2]
[359590665,1746168648462,-976.89,0.00019998,2]
[359590666,1746168648471,-976.89,0.00019998,2]
[359590667,1746168648480,-500.0,0.00019998,2]
[359590668,1746168648489,-500.0,0.00019998,2]
[359590669,1746168648499,-500.0,0.00019998,2]
[359590670,1746168648511,-1798.23,0.00019998,2]
[359590671,1746168648521,-630.0,0.00019999,2]
[359590672,1746168648531,-536.82485784,0.00019999,2]
[359590673,1746168648541,-300.0,0.00019999,2]
[359590674,1746168648551,-450.0,0.00019999,2]
[359590675,1746168648560,-450.0,0.00019999,2]
[359590676,1746168648570,-1034.65,0.00019999,2]
[359590677,1746168648580,-546.53360989,0.00019999,2]
[359590678,1746168648590,-450.0,0.00019999,2]
[359590679,1746168648599,-450.0,0.00019999,2]
[359590680,1746168648609,-450.0,0.00019999,2]
[359590681,1746168648619,-500.0,0.00019999,2]
[359590682,1746168648628,-627.03329422,0.00019999,2]
[359590683,1746168648638,-450.0,0.00019999,2]
[359590684,1746168648717,-450.0,0.00019999,2]
[359590685,1746168648727,-450.0,0.00019999,2]
[359590686,1746168648737,-450.0,0.00019999,2]
[359590687,1746168648747,-450.0,0.00019999,2]
[359590688,1746168648757,-450.0,0.00019999,2]
[359590689,1746168648766,-541.16,0.00019999,2]
[359590690,1746168648776,-450.0,0.00019999,2]
[359590691,1746168648786,-450.0,0.00019999,2]
[359590692,1746168648795,-166.2246764,0.00019999,2]
[359590693,1746168648805,-450.0,0.00019999,2]
[359590694,1746168648814,-450.0,0.00019999,2]
[359590695,1746168648824,-450.0,0.00019999,2]
[359590696,1746168648833,-450.0,0.00019999,2]
[359590697,1746168648843,-450.0,0.00019999,2]
[359590698,1746168648852,-324.99534254,0.00019999,2]
[359590699,1746168648861,-260.07111918,0.00019999,2]
[359590700,1746168648872,-450.0,0.00019999,2]
[359590701,1746168648881,-514.35,0.00019999,2]
[359590702,1746168648891,-450.0,0.00019999,2]
[359590703,1746168648901,-450.0,0.00019999,2]
[359590704,1746168648911,-450.0,0.00019999,2]
[359590705,1746168648920,-450.0,0.00019999,2]
[359590706,1746168648930,-650.73,0.00019999,2]
[359590707,1746168648940,-450.0,0.00019999,2]
[359590708,1746168648949,-450.0,0.00019999,2]
[359590709,1746168648959,-450.0,0.00019999,2]
[359590710,1746168648969,-198.04898131,0.00019999,2]
[359590711,1746168648979,-450.0,0.00019999,2]
[359590712,1746168648988,-450.0,0.00019999,2]
[359590713,1746168648998,-450.0,0.00019999,2]
[359590714,1746168649008,-500.0,0.00019999,2]
[359590715,1746168649018,-450.0,0.00019999,2]
[359590716,1746168649028,-450.0,0.00019999,2]
[359590717,1746168649038,-4026.76,0.00019999,2]
[359590718,1746168649048,-500.0,0.00019999,2]
[359590719,1746168649058,-500.0,0.00019999,2]
[359590720,1746168649069,-500.0,0.00019999,2]
[359590721,1746168649079,-500.0,0.00019999,2]
[359590722,1746168649089,-500.0,0.00019999,2]
[359590723,1746168649099,-500.0,0.00019999,2]
[359590724,1746168649109,-350.41375353,0.00019999,2]
[359590725,1746168649118,-716.54,0.00019999,2]
[359590726,1746168649128,-450.0,0.00019999,2]
[359590727,1746168649138,-450.0,0.00019999,2]
[359590728,1746168649148,-450.0,0.00019999,2]
[359590729,1746168649158,-468.71,0.00019999,2]
[359590730,1746168649168,-506.96314691,0.00019999,2]
[359590731,1746168649178,-450.0,0.00019999,2]
[359590732,1746168649188,-450.32,0.00019999,2]
[359590733,1746168649197,-822.57,0.00019999,2]
[359590734,1746168649207,-450.0,0.00019999,2]
[359590735,1746168649216,-450.0,0.00019999,2]
[359590736,1746168649226,-1696.25,0.00019999,2]
[359590737,1746168649235,-450.0,0.00019999,2]
[359590738,1746168649245,-572.36824906,0.00019999,2]
[359590739,1746168649257,-450.0,0.00019999,2]
[359590740,1746168649267,-450.0,0.00019999,2]
[359590741,1746168649276,-651.05,0.00019999,2]
[359590742,1746168649285,-1932.83,0.00019999,2]
[359590743,1746168649294,-613.93,0.00019999,2]
[359590744,1746168649304,-450.0,0.00019999,2]
[359590745,1746168649313,-450.0,0.00019999,2]
[359590746,1746168649322,-450.0,0.00019999,2]
[359590747,1746168649331,-450.0,0.00019999,2]
[359590748,1746168649341,-450.0,0.00019999,2]
[359590749,1746168649351,-450.0,0.00019999,2]
[359590750,1746168649360,-450.0,0.00019999,2]
[359590751,1746168649370,-450.0,0.00019999,2]
[359590752,1746168649379,-767.06,0.00019999,2]
[359590753,1746168649389,-450.0,0.00019999,2]
[359590754,1746168649399,-450.0,0.00019999,2]
[359590755,1746168649408,-450.0,0.00019999,2]
[359590756,1746168649417,-526.95490804,0.00019999,2]
[359590757,1746168649427,-530.70042877,0.00019999,2]
[359590758,1746168649436,-500.0,0.00019999,2]
[359590759,1746168649445,-500.0,0.00019999,2]
[359590760,1746168649459,-500.0,0.00019999,2]
[359590761,1746168649468,-500.0,0.00019999,2]
[359590762,1746168649478,-500.0,0.00019999,2]
[359590763,1746168649487,-500.0,0.00019999,2]
[359590764,1746168649497,-500.0,0.00019999,2]
[359590765,1746168649507,-500.0,0.00019999,2]
[359590766,1746168649516,-500.0,0.00019999,2]
[359590767,1746168649526,-500.0,0.00019999,2]
[359590768,1746168649536,-500.0,0.00019999,2]
[359590769,1746168649545,-335.75328962,0.00019999,2]
[359590770,1746168649554,-500.0,0.00019999,2]
[359590771,1746168649563,-500.0,0.00019999,2]
[359590772,1746168649573,-500.0,0.00019999,2]
[359590773,1746168649582,-500.0,0.00019999,2]
[359590774,1746168649591,-500.0,0.00019999,2]
[359590775,1746168649601,-500.0,0.00019999,2]
[359590776,1746168649611,-500.0,0.00019999,2]
[359590777,1746168649621,-500.0,0.00019999,2]
[359590778,1746168649632,-500.0,0.00019999,2]
[359590779,1746168649642,-500.0,0.00019999,2]
[359590780,1746168649652,-421.67477482,0.00019999,2]
[359590781,1746168649663,-500.0,0.00019999,2]
[359590782,1746168649672,-500.0,0.00019999,2]
[359590783,1746168649682,-693.55,0.00019999,2]
[359590784,1746168649691,-500.0,0.00019999,2]
[359590785,1746168649702,-693.55,0.00019999,2]
[359590786,1746168649711,-500.0,0.00019999,2]
[359590787,1746168649721,-693.55,0.00019999,2]
[359590788,1746168649731,-500.0,0.00019999,2]
[359590789,1746168649741,-693.55,0.00019999,2]
[359590790,1746168649752,-500.0,0.00019999,2]
[359590791,1746168649761,-693.55,0.00019999,2]
[359590792,1746168649771,-556.17257505,0.00019999,2]
[359590793,1746168649781,-693.55,0.00019999,2]
[359590794,1746168649790,-693.55,0.00019999,2]
[359590795,1746168649800,-693.55,0.00019999,2]
[359590796,1746168649810,-693.55,0.00019999,2]
[359590797,1746168649819,-693.55,0.00019999,2]
[359590798,1746168649829,-693.55,0.00019999,2]
[359590799,1746168649838,-693.55,0.00019999,2]
[359590800,1746168649848,-693.55,0.00019999,2]
[359590801,1746168649856,-693.55,0.00019999,2]
[359590802,1746168649866,-693.55,0.00019999,2]
[359590803,1746168649875,-693.55,0.00019999,2]
[359590804,1746168649884,-693.55,0.00019999,2]
[359590805,1746168649894,-693.55,0.00019999,2]
[359590806,1746168649903,-693.55,0.00019999,2]
[359590807,1746168649913,-693.59476947,0.00019999,2]
[359590808,1746168649923,-957.41,0.00019999,2]
[359590809,1746168649932,-976.89,0.00019999,2]
[359590810,1746168649941,-976.89,0.00019999,2]
[359590811,1746168649950,-976.89,0.00019999,2]
[359590812,1746168649959,-976.89,0.00019999,2]
[359590813,1746168649968,-976.89,0.00019999,2]
[359590814,1746168649977,-976.89,0.00019999,2]
[359590815,1746168649986,-976.89,0.00019999,2]
[359590816,1746168649996,-976.89,0.00019999,2]
[359590817,1746168650005,-976.89,0.00019999,2]
[359590818,1746168650014,-976.89,0.00019999,2]
[359590819,1746168650024,-976.89,0.00019999,2]
[359590820,1746168650034,-976.89,0.00019999,2]
[359590821,1746168650043,-976.89,0.00019999,2]
[359590822,1746168650052,-976.89,0.00019999,2]
[359590823,1746168650062,-976.89,0.00019999,2]
[359590824,1746168650071,-976.89,0.00019999,2]
[359590825,1746168650081,-976.89,0.00019999,2]
[359590826,1746168650091,-976.89,0.00019999,2]
[359590827,1746168650100,-976.89,0.00019999,2]
[359590828,1746168650109,-976.98951746,0.00019999,2]
[359590829,1746168650119,-3598.83,0.00019999,2]
[359590830,1746168650129,-368.23329625,0.00019999,2]
[359590831,1746168650139,-500.0,0.00019999,2]
[359590832,1746168650148,-500.0,0.00019999,2]
[359590833,1746168650158,-500.0,0.00019999,2]
[359590834,1746168650167,-616.0,0.00019999,2]
[359590835,1746168650177,-500.0,0.00019999,2]
[359590836,1746168650186,-500.0,0.00019999,2]
[359590837,1746168650196,-500.0,0.00019999,2]
[359590838,1746168650205,-500.0,0.00019999,2]
[359590839,1746168650215,-500.0,0.00019999,2]
[359590840,1746168650224,-500.0,0.00019999,2]
[359590841,1746168650233,-511.83843119,0.00019999,2]
[359590842,1746168650243,-3147.64,0.00019999,2]
[359590843,1746168650254,-1223.63,0.00019999,2]
[359590844,1746168650263,-1060.85,0.00019999,2]
[359590845,1746168650273,-712.93,0.00019999,2]
[359590846,1746168650282,-450.0,0.00019999,2]
[359590847,1746168650292,-497.8,0.00019999,2]
[359590848,1746168650301,-1798.23,0.00019999,2]
[359590849,1746168650311,-1798.23,0.00019999,2]
[359590850,1746168650321,-1798.23,0.00019999,2]
[359590851,1746168650331,-1798.23,0.00019999,2]
[359590852,1746168650341,-1798.23,0.00019999,2]
[359590853,1746168650350,-1798.23,0.00019999,2]
[359590854,1746168650359,-1798.23,0.00019999,2]
[359590855,1746168650369,-1798.23,0.00019999,2]
[359590856,1746168650378,-1798.23,0.00019999,2]
[359590857,1746168650387,-1798.23,0.00019999,2]
[359590858,1746168650397,-1798.23,0.00019999,2]
[359590859,1746168650407,-1798.23,0.00019999,2]
[359590860,1746168650416,-1798.23,0.00019999,2]
[359590861,1746168650425,-1798.23,0.00019999,2]
[359590862,1746168650435,-1798.23,0.00019999,2]
[359590863,1746168650444,-1798.23,0.00019999,2]
[359590864,1746168650458,-1798.23,0.00019999,2]
[359590865,1746168650467,-1798.23,0.00019999,2]
[359590866,1746168650476,-1798.23,0.00019999,2]
[359590867,1746168650485,-1798.45967404,0.00019999,2]
[359590868,1746168650494,-1528.69,0.00019999,2]
[359590869,1746168650503,-807.1,0.00019999,2]
[359590870,1746168650512,-884.31,0.00019999,2]
[359590871,1746168650521,-1766.94,0.00019999,2]
[359590872,1746168650531,-450.0,0.00019999,2]
[359590873,1746168650540,-450.0,0.00019999,2]
[359590874,1746168650549,-450.0,0.00019999,2]
[359590875,1746168650557,-674.95,0.00019999,2]
[359590876,1746168650566,-1050.71,0.00019999,2]
[359590877,1746168650575,-186.48852192,0.0002,2]
[359590878,1746168650584,-724329.41646623,0.0002,2]
[359590879,1746168650594,-987842.19015491,0.0002,2]
[359590880,1746168651072,-6204.9454471,0.0002,2]
[359590881,1746168651761,-473.13439509,0.00019887,2]
[359590882,1746168651770,-500.0,0.00019887,2]
[359590883,1746168651780,-500.0,0.00019887,2]
[359590884,1746168651790,-500.0,0.00019887,2]
[359590885,1746168651799,-215.46475495,0.00019887,2]
[359590886,1746168651894,-284.53524505,0.00019887,2]
[359590887,1746168651904,-500.0,0.00019887,2]
[359590888,1746168651913,-500.0,0.00019887,2]
[359590889,1746168651923,-500.0,0.00019887,2]
[359590890,1746168651933,-500.0,0.00019887,2]
[359590891,1746168651943,-500.0,0.00019887,2]
[359590892,1746168651953,-500.0,0.00019887,2]
[359590893,1746168651963,-500.0,0.00019887,2]
[359590894,1746168651973,-500.0,0.00019887,2]
[359590895,1746168651982,-500.0,0.00019887,2]
[359590896,1746168651992,-500.0,0.00019887,2]
[359590897,1746168652003,-500.0,0.00019887,2]
[359590898,1746168652012,-500.0,0.00019887,2]
[359590899,1746168652022,-500.0,0.00019887,2]
[359590900,1746168652032,-500.0,0.00019887,2]
[359590901,1746168652042,-500.0,0.00019887,2]
[359590902,1746168652052,-500.0,0.00019887,2]
[359590903,1746168652061,-500.0,0.00019887,2]
[359590904,1746168652071,-500.0,0.00019887,2]
[359590905,1746168652081,-500.0,0.00019887,2]
[359590906,1746168652091,-1087337.2382368,0.0002,2]
[359590907,1746168652101,-1587793.57369891,0.0002,2]
[359590908,1746168652111,-7467.35559075,0.0002,2]
[359590909,1746168652121,-151.0,0.0002,2]
[359590910,1746168652130,-151.0,0.0002,2]
[359590911,1746168652140,-281.779867,0.0002,2]
[359590912,1746168652151,-1510.34055592,0.0002,2]
[359590913,1746168652161,-151.0,0.0002,2]
[359590914,1746168652171,-224.12537039,0.0002,2]
[359590915,1746168652180,-184.4962756,0.0002,2]
[359590916,1746168652190,-150.0,0.0002,2]
[359590917,1746168652200,-213.11640903,0.0002,2]
[359590918,1746168652210,-153.78232717,0.0002,2]
[359590919,1746168652220,-151.0,0.0002,2]
[359590920,1746168652230,-5190132.26902647,0.0002,2]
[359590921,1746168653178,-211.08666186,0.00019887,2]
[359590922,1746168653188,-423.65247348,0.00019887,2]
[359590923,1746168653204,-76.34752652,0.00019887,2]
[359590924,1746168653213,-500.0,0.00019887,2]
[359590925,1746168653223,-192.92215381,0.00019887,2]
[359590926,1746168653238,-307.07784619,0.00019887,2]
[359590927,1746168653247,-500.0,0.00019887,2]
[359590928,1746168653257,-58.36483735,0.00019887,2]
[359590929,1746168653275,-441.63516265,0.00019887,2]
[359590930,1746168653285,-500.0,0.00019887,2]
[359590931,1746168653294,-500.0,0.00019887,2]
[359590932,1746168653304,-500.0,0.00019887,2]
[359590933,1746168653313,-450.0,0.00019983,2]
[359590934,1746168653322,-450.0,0.00019984,2]
[359590935,1746168653332,-1967.03686126,0.0002,2]
[359590936,1746168653344,-7517.8456877,0.0002,2]
[359590937,1746168654092,-34123.03997835,0.0002,2]
[359590938,1746168654106,-1932.0,0.0002,2]
[359590941,1746169072687,188.69,0.00019382,2]
[359590942,1746169083333,157.29,0.00018825,2]
[359590943,1746169083393,157.29,0.00018831,2]
[359590944,1746169083641,157.29,0.00018837,2]
[359590945,1746169083836,157.29,0.00018844,2]